{"text_format":"2","workbook":"xlsx","n_sheets":10,"sheets":["Summary","Al-Furqan,municipality","Domeis Two Side Main Road","Al-Whd ,AL-Salam hospita","Al Atibaa, roads nearah Furkan","Somar,Qibaa Mosque Intersection","Somar,Al-Sahron st.water pum","Domaiz near Al-'Abed school","Al-Saha,domaiz & Al-Saherun Int","Al-Mithaq, gravel & sand Yard"],"not_rendered":{"charts":0,"images":0,"macros":0,"external_links":0,"defined_names":0,"comments":0,"pivot_tables":0},"unopened":[],"bounds":{"document_bytes":16777216,"sheet_cells":100000,"run_cost":"one","rows_first":2000,"rows_last":500,"rows_between":2000,"halvings":0,"cell_chars":16384,"cell_head_chars":4096},"cells_cut":0,"cells_raw":0,"read":"whole","date_system":"1900"}

{"sheet":"Summary","index":0,"n_rows":12,"n_cols":3,"rows_kept":12,"cut":false,"hidden":false,"merged":[]}
[null,"Lot3. Sewage Mosul"]
["#","Name of place","Cost $"]
[1,"Renovation of the sewerage pipe network - Al-Furqan area in front of Ninwa municipality’s office- Mosul - Ninwa Governorate ",{"$f":"'Al-Furqan,municipality'!F21","v":0}]
[2,"Renovation of the sewerage pipe network-Domeis Two Side Main Road- Mosul- Ninwa Governorate ",{"$f":"'Domeis Two Side Main Road'!F21","v":0}]
[3,"Renovation of the sewerage pipe network - Al-Whda area near from AL-Salam hospital - Mosul- Ninwa Governorate ",{"$f":"'Al-Whd ,AL-Salam hospita'!F24","v":0}]
[4,"Renovation of the sewerage pipe network-Al Atibaa area two roads nearah Furkan area- Mosul- Ninwa Governorate ",{"$f":"'Al Atibaa, roads nearah Furkan'!F23","v":0}]
[5,"Renovation of the sewerage pipe network - Somar area-Qibaa Mosque Intersection - Mosul - Ninwa Governorate ",{"$f":"'Somar,Qibaa Mosque Intersection'!F21","v":0}]
[6,"Renovation of the sewerage pipe network - Somar area-Al-Sahron st.-near from water pump- Mosul - Ninwa Governorate ",{"$f":"'Somar,Al-Sahron st.water pum'!F21","v":0}]
[7,"Renovation of the sewerage pipe network -Domaiz near Al-'Abed school - Mosul- Ninwa Governorate ",{"$f":"'Domaiz near Al-''Abed school'!F24","v":0}]
[8,"Renovation of the sewerage pipe network - Al-Saha,domaiz & Al-Saherun Intersection - Mosul - Ninwa Governorate ",{"$f":"'Al-Saha,domaiz & Al-Saherun Int'!F21","v":0}]
[9,"Renovation of the sewerage pipe network - Al-Mithaq area-in front of gravel & sand Yard - Mosul- Ninwa Governorate ",{"$f":"'Al-Mithaq, gravel & sand Yard'!F21","v":0}]
[null,"Total",{"$f":"SUM(C3:C11)","v":0}]

{"sheet":"Al-Furqan,municipality","index":1,"n_rows":21,"n_cols":6,"rows_kept":21,"cut":false,"hidden":false,"merged":[[20,1,20,4],[0,0,0,5],[2,1,2,5],[3,1,3,5],[4,1,4,5],[5,1,5,5]]}
["Renovation of the sewerage pipe network - Al-Furqan area in front of Ninwa municipality’s office- Mosul - Ninwa Governorate "]
[null,"General Specification : "]
[null," 1- All works according to the instruction by the supervision Engineering Committee"]
[null,"2- All the materials supplied by the contractor must be according to Iraq standards"]
[null,"3- The contractor must provide samples , catalogues and specification of materials for testing and approval by the site engineer before supplying"]
[null,"4- Contractor must pay the cost for samples including and laboratory test required"]
[null,"5- The attached  drawing are part of the BOQ"]
[null,"6- All the supplied pipes thickness shall according to the existing "]
["#","Item Description","Unit","Qty","price$","Total $"]
[1,"Excavation\nSupply materials, machineries, and manpower to remove the damaged layers (asphalt and concrete), excavate 3m average width the subbase around the pipes to the required depth, removing the existing pipes, the work includes supporting the trench's sides and pumping out the water with all required to complete the job, remove the rubble out of the site to locations determined by the municipality of Mosul.\n","M3",360,null,{"$f":"D10*E10","v":0}]
[2,"Supply pipes:\nSupplying different types and sizes  of pipes as shown below, with all its requirements such as connection fittings of (male & female) threaded adapters , the price includes loading, transporting and unloading in the site."]
[null,"600mm UPVC pipes","ML",60,null,{"$f":"D12*E12","v":0}]
[null," 315mm UPVC pipes ","ML",12,null,{"$f":"D13*E13","v":0}]
[3,"Laying pipes:\nLaying the pipes according to designed slope, bedding under and around the buried pipe with 20cm thick clean sand, the work includes casting the connection joint between the existing and new pipe because of the different pipes material."]
[null,"600mm UPVC pipes","ML",60,null,{"$f":"D15*E15","v":0}]
[4,"Laying gullies pipes:\n Supply materials, machineries, and manpower to excavate and lay(315mm dia. UPVC pipes) according to designed slope, bedding under and around the pipes with 20cm thick clean sand, the work includes connecting the pipe with gully & manhole and backfilling the pipe with compacted subbase layer to the road level.","ML",12,null,{"$f":"D16*E16","v":0}]
[5,"Manholes:\nSupply materials and manpower to cast manholes by reinforced concrete mortar 1:2:4 with 30cm thick base, 25cm thick walls, reinforced with 12mm in dia. (15*15)cm, 30cm thick slab cover reinforced with two layers 12mm dia. (15*15)cm, Providing & fixing steel cover of approved quality (70cm dia.)with the road level, the work includes   excavation, formwork, repairs work and all required to complete the job as the details below:"]
[null,"internal clearance dimensions (1.2*1.2) m","EA",8,null,{"$f":"D18*E18","v":0}]
[5,"Gullies:\nSupply materials, manpower to Cast Gullies with concrete 1:2:4, internal clearance dimensions (35*55) cm, 75cm depth, base thickness 20cm, wall thickness 15cm. The work includes providing and fixing cast iron inlet cover.","EA",8,null,{"$f":"D19*E19","v":0}]
[6,"Backfilling:\nSupply materials, machineries, and manpower to backfill the working area with subbase layers every 30cm thick, approved compaction of each layers using machineries making the standard compaction required to the road level. ","M3",300,null,{"$f":"D20*E20","v":0}]
[null,"Total",null,null,null,{"$f":"SUM(F10:F20)","v":0}]

{"sheet":"Domeis Two Side Main Road","index":2,"n_rows":21,"n_cols":6,"rows_kept":21,"cut":false,"hidden":false,"merged":[[20,1,20,4],[0,0,0,5],[2,1,2,5],[3,1,3,5],[4,1,4,5],[5,1,5,5]]}
["Renovation of the sewerage pipe network-Domeis Two Side Main Road- Mosul- Ninwa Governorate "]
[null,"General Specification : "]
[null," 1- All works according to the instruction by the supervision Engineering Committee"]
[null,"2- All the materials supplied by the contractor must be according to Iraq standards"]
[null,"3- The contractor must provide samples , catalogues and specification of materials for testing and approval by the site engineer before supplying"]
[null,"4- Contractor must pay the cost for samples including and laboratory test required"]
[null,"5- The attached  drawing are part of the BOQ"]
[null,"6- All the supplied pipes thickness shall according to the existing "]
["#","Item Description","Unit","Qty","price$","Total $"]
[1,"Excavation\nSupply materials, machineries, and manpower to remove the damaged layers (asphalt and concrete), excavate 3m average width the subbase around the pipes to the required depth, removing the existing pipes, the work includes supporting the trench's sides and pumping out the water with all required to complete the job, remove the rubble out of the site to locations determined by the municipality of Mosul.\n","M3",216,null,{"$f":"D10*E10","v":0}]
[2,"Supply pipes:\nSupplying different types and sizes  of pipes as shown below, with all its requirements such as connection fittings of (male & female) threaded adapters , the price includes loading, transporting and unloading in the site."]
[null," 600mm UPVC pipes ","ML",36,null,{"$f":"D12*E12","v":0}]
[null," 315mm UPVC pipes ","ML",36,null,{"$f":"D13*E13","v":0}]
[3,"Laying pipes:\nLaying the pipes according to designed slope, bedding under and around the buried pipe with 20cm thick clean sand, the work includes casting the connection joint between the existing and new pipe because of the different pipes material."]
[null," 600mm UPVC pipes ","ML",36,null,{"$f":"D15*E15","v":0}]
[4,"Laying gullies pipes:\n Supply materials, machineries, and manpower to excavate and lay(315mm dia. UPVC pipes) according to designed slope, bedding under and around the pipes with 20cm thick clean sand, the work includes connecting the pipe with gully & manhole and backfilling the pipe with compacted subbase layer to the road level.","ML",36,null,{"$f":"D16*E16","v":0}]
[5,"Manholes:\nSupply materials and manpower to cast manholes by reinforced concrete mortar 1:2:4 with 30cm thick base, 25cm thick walls, reinforced with 12mm in dia. (15*15)cm, 30cm thick slab cover reinforced with two layers 12mm dia. (15*15)cm, Providing & fixing steel cover of approved quality  (70cm dia.)with the road level, the work includes   excavation, formwork, repairs work and all required to complete the job as the details below:"]
[null,"internal clearance dimensions (1.2*1.2) m","EA",3,null,{"$f":"D18*E18","v":0}]
[5,"Gullies:\nSupply materials, manpower to Cast Gullies with concrete 1:2:4, internal clearance dimensions (35*55) cm, 75cm depth, base thickness 20cm, wall thickness 15cm. The work includes providing and fixing cast iron inlet cover.","EA",5,null,{"$f":"D19*E19","v":0}]
[6,"Backfilling:\nSupply materials, machineries, and manpower to backfill the working area with subbase layers every 30cm thick, approved compaction of each layers using machineries making the standard compaction required to the road level. ","M3",180,null,{"$f":"D20*E20","v":0}]
[null,"Total",null,null,null,{"$f":"SUM(F10:F20)","v":0}]

{"sheet":"Al-Whd ,AL-Salam hospita","index":3,"n_rows":24,"n_cols":6,"rows_kept":24,"cut":false,"hidden":false,"merged":[[23,1,23,4],[0,0,0,5],[2,1,2,5],[3,1,3,5],[4,1,4,5],[5,1,5,5]]}
["Renovation of the sewerage pipe network - Al-Whda area near from AL-Salam hospital - Mosul- Ninwa Governorate "]
[null,"General Specification : "]
[null," 1- All works according to the instruction by the supervision Engineering Committee"]
[null,"2- All the materials supplied by the contractor must be according to Iraq standards"]
[null,"3- The contractor must provide samples , catalogues and specification of materials for testing and approval by the site engineer before supplying"]
[null,"4- Contractor must pay the cost for samples including and laboratory test required"]
[null,"5- The attached  drawing are part of the BOQ"]
[null,"6- All the supplied pipes thickness shall according to the existing "]
["#","Item Description","Unit","Qty","price$","Total $"]
[1,"Excavation\nSupply materials, machineries, and manpower to remove the damaged layers (asphalt and concrete), excavate 2m average width the subbase around the pipes to the required depth, removing the existing pipes, the work includes supporting the trench's sides and pumping out the water with all required to complete the job, remove the rubble out of the site to locations determined by the municipality of Mosul.\n","M3",1320,null,{"$f":"D10*E10","v":0}]
[2,"Supply pipes:\nSupplying different types and sizes  of pipes as shown below, with all its requirements such as connection fittings of (male & female) threaded adapters , the price includes loading, transporting and unloading in the site."]
[null,"800mm UPVC pipes","ML",120,null,{"$f":"D12*E12","v":0}]
[null,"600mm UPVC pipes","ML",100,null,{"$f":"D13*E13","v":0}]
[null," 315mm UPVC pipes ","ML",90,null,{"$f":"D14*E14","v":0}]
[3,"Laying pipes:\nLaying the pipes according to designed slope, bedding under and around the buried pipe with 20cm thick clean sand, the work includes casting the connection joint between the existing and new pipe because of the different pipes material."]
[null,"800mm UPVC pipes","ML",120,null,{"$f":"D16*E16","v":0}]
[null,"600mm UPVC pipes","ML",100,null,{"$f":"D17*E17","v":0}]
[4,"Laying gullies pipes:\n Supply materials, machineries, and manpower to excavate and lay(315mm dia. UPVC pipes) according to designed slope, bedding under and around the pipes with 20cm thick clean sand, the work includes connecting the pipe with gully & manhole and backfilling the pipe with compacted subbase layer to the road level.","ML",90,null,{"$f":"D18*E18","v":0}]
[5,"Manholes:\nSupply materials and manpower to cast manholes by reinforced concrete mortar 1:2:4 with 30cm thick base, 25cm thick walls, reinforced with 12mm in dia. (15*15)cm, 30cm thick slab cover reinforced with two layers 12mm dia. (15*15)cm, Providing & fixing steel cover of approved quality (70cm dia.)with the road level, the work includes   excavation, formwork, repairs work and all required to complete the job as the details below:"]
[null,"internal clearance dimensions (1.6*1.6) m","EA",4,null,{"$f":"D20*E20","v":0}]
[null,"internal clearance dimensions (1.2*1.2) m","EA",5,null,{"$f":"D21*E21","v":0}]
[5,"Gullies:\nSupply materials, manpower to Cast Gullies with concrete 1:2:4, internal clearance dimensions (35*55) cm, 75cm depth, base thickness 20cm, wall thickness 15cm. The work includes providing and fixing cast iron inlet cover.","EA",20,null,{"$f":"D22*E22","v":0}]
[6,"Backfilling:\nSupply materials, machineries, and manpower to backfill the working area with subbase layers every 30cm thick, approved compaction of each layers using machineries making the standard compaction required to the road level. ","M3",1047,null,{"$f":"D23*E23","v":0}]
[null,"Total",null,null,null,{"$f":"SUM(F10:F23)","v":0}]

{"sheet":"Al Atibaa, roads nearah Furkan","index":4,"n_rows":23,"n_cols":6,"rows_kept":23,"cut":false,"hidden":false,"merged":[[22,1,22,4],[0,0,0,5],[2,1,2,5],[3,1,3,5],[4,1,4,5],[5,1,5,5]]}
["Renovation of the sewerage pipe network-Al Atibaa area two roads nearah Furkan area- Mosul- Ninwa Governorate "]
[null,"General Specification : "]
[null," 1- All works according to the instruction by the supervision Engineering Committee"]
[null,"2- All the materials supplied by the contractor must be according to Iraq standards"]
[null,"     3- The contractor must provide samples , catalogues and specification of materials for testing and approval by the site engineer before supplying"]
[null,"4- Contractor must pay the cost for samples including and laboratory test required"]
[null,"5- The attached  drawing are part of the BOQ"]
[null,"6- All the supplied pipes thickness shall according to the existing "]
["#","Item Description","Unit","Qty","price$","Total $"]
[1,"Excavation\nSupply materials, machineries, and manpower to remove the damaged layers (asphalt and concrete), excavate 2m average width the subbase around the pipes to the required depth, removing the existing pipes, the work includes supporting the trench's sides and pumping out the water with all required to complete the job, remove the rubble out of the site to locations determined by the municipality of Mosul.\n","M3",1692,null,{"$f":"D10*E10","v":0}]
[2,"Supply pipes:\nSupplying different types and sizes  of pipes as shown below, with all its requirements such as connection fittings of (male & female) threaded adapters , the price includes loading, transporting and unloading in the site."]
[null,"1000mm GRP pipes","ML",240,null,{"$f":"D12*E12","v":0}]
[null," 700mm UPVC pipes ","ML",42,null,{"$f":"D13*E13","v":0}]
[null," 315mm UPVC pipes ","ML",18,null,{"$f":"D14*E14","v":0}]
[3,"Laying pipes:\nLaying the pipes according to designed slope, bedding under and around the buried pipe with 20cm thick clean sand, the work includes casting the connection joint between the existing and new pipe because of the different pipes material."]
[null,"1000mm GRP pipes","ML",240,null,{"$f":"D16*E16","v":0}]
[null," 700mm UPVC pipes ","ML",42,null,{"$f":"D17*E17","v":0}]
[4,"Laying gullies pipes:\n Supply materials, machineries, and manpower to excavate and lay(315mm dia. UPVC pipes) according to designed slope, bedding under and around the pipes with 20cm thick clean sand, the work includes connecting the pipe with gully & manhole and backfilling the pipe with compacted subbase layer to the road level.","ML",18,null,{"$f":"D18*E18","v":0}]
[5,"Manholes:\nSupply materials and manpower to cast manholes by reinforced concrete mortar 1:2:4 with 30cm thick base, 25cm thick walls, reinforced with 12mm in dia. (15*15)cm, 30cm thick slab cover reinforced with two layers 12mm dia. (15*15)cm, Providing & fixing steel cover of approved quality (70cm dia.)with the road level, the work includes   excavation, formwork, repairs work and all required to complete the job as the details below:"]
[null,"internal clearance dimensions (3*2.5) m","EA",5,null,{"$f":"D20*E20","v":0}]
[5,"Gullies:\nSupply materials, manpower to Cast Gullies with concrete 1:2:4, internal clearance dimensions (35*55) cm, 75cm depth, base thickness 20cm, wall thickness 15cm. The work includes providing and fixing cast iron inlet cover.","EA",6,null,{"$f":"D21*E21","v":0}]
[6,"Backfilling:\nSupply materials, machineries, and manpower to backfill the working area with subbase layers every 30cm thick, approved compaction of each layers using machineries making the standard compaction required to the road level. ","M3",1170,null,{"$f":"D22*E22","v":0}]
[null,"Total",null,null,null,{"$f":"SUM(F10:F22)","v":0}]

{"sheet":"Somar,Qibaa Mosque Intersection","index":5,"n_rows":21,"n_cols":6,"rows_kept":21,"cut":false,"hidden":false,"merged":[[20,1,20,4],[0,0,0,5],[2,1,2,5],[3,1,3,5],[4,1,4,5],[5,1,5,5]]}
["Renovation of the sewerage pipe network - Somar area-Qibaa Mosque Intersection - Mosul - Ninwa Governorate "]
[null,"General Specification : "]
[null," 1- All works according to the instruction by the supervision Engineering Committee"]
[null,"2- All the materials supplied by the contractor must be according to Iraq standards"]
[null,"3- The contractor must provide samples , catalogues and specification of materials for testing and approval by the site engineer before supplying"]
[null,"4- Contractor must pay the cost for samples including and laboratory test required"]
[null,"5- The attached  drawing are part of the BOQ"]
[null,"6- All the supplied pipes thickness shall according to the existing "]
["#","Item Description","Unit","Qty","price$","Total $"]
[1,"Excavation\nSupply materials, machineries, and manpower to remove the damaged layers (asphalt and concrete), excavate 3m average width the subbase around the pipes to the required depth, removing the existing pipes, the work includes supporting the trench's sides and pumping out the water with all required to complete the job, remove the rubble out of the site to locations determined by the municipality of Mosul.\n","M3",180,null,{"$f":"D10*E10","v":0}]
[2,"Supply pipes:\nSupplying different types and sizes  of pipes as shown below, with all its requirements such as connection fittings of (male & female) threaded adapters , the price includes loading, transporting and unloading in the site."]
[null,"400mm UPVC pipes","ML",30,null,{"$f":"D12*E12","v":0}]
[null," 315mm UPVC pipes ","ML",24,null,{"$f":"D13*E13","v":0}]
[3,"Laying pipes:\nLaying the pipes according to designed slope, bedding under and around the buried pipe with 20cm thick clean sand, the work includes casting the connection joint between the existing and new pipe because of the different pipes material."]
[null,"400mm UPVC pipes","ML",30,null,{"$f":"D15*E15","v":0}]
[4,"Laying gullies pipes:\n Supply materials, machineries, and manpower to excavate and lay(315mm dia. UPVC pipes) according to designed slope, bedding under and around the pipes with 20cm thick clean sand, the work includes connecting the pipe with gully & manhole and backfilling the pipe with compacted subbase layer to the road level.","ML",24,null,{"$f":"D16*E16","v":0}]
[5,"Manholes:\nSupply materials and manpower to cast manholes by reinforced concrete mortar 1:2:4 with 30cm thick base, 25cm thick walls, reinforced with 12mm in dia. (15*15)cm, 30cm thick slab cover reinforced with two layers 12mm dia. (15*15)cm, Providing & fixing steel cover of approved quality (70cm dia.)with the road level, the work includes   excavation, formwork, repairs work and all required to complete the job as the details below:"]
[null,"internal clearance dimensions (1*1) m","EA",3,null,{"$f":"D18*E18","v":0}]
[5,"Gullies:\nSupply materials, manpower to Cast Gullies with concrete 1:2:4, internal clearance dimensions (35*55) cm, 75cm depth, base thickness 20cm, wall thickness 15cm. The work includes providing and fixing cast iron inlet cover.","EA",4,null,{"$f":"D19*E19","v":0}]
[6,"Backfilling:\nSupply materials, machineries, and manpower to backfill the working area with subbase layers every 30cm thick, approved compaction of each layers using machineries making the standard compaction required to the road level. ","M3",161,null,{"$f":"D20*E20","v":0}]
[null,"Total",null,null,null,{"$f":"SUM(F10:F20)","v":0}]

{"sheet":"Somar,Al-Sahron st.water pum","index":6,"n_rows":21,"n_cols":6,"rows_kept":21,"cut":false,"hidden":false,"merged":[[20,1,20,4],[0,0,0,5],[2,1,2,5],[3,1,3,5],[4,1,4,5],[5,1,5,5]]}
["Renovation of the sewerage pipe network - Somar area-Al-Sahron st.-near from water pump- Mosul - Ninwa Governorate "]
[null,"General Specification : "]
[null," 1- All works according to the instruction by the supervision Engineering Committee"]
[null,"2- All the materials supplied by the contractor must be according to Iraq standards"]
[null,"     3- The contractor must provide samples , catalogues and specification of materials for testing and approval by the site engineer before supplying"]
[null,"4- Contractor must pay the cost for samples including and laboratory test required"]
[null,"5- The attached  drawing are part of the BOQ"]
[null,"6- All the supplied pipes thickness shall according to the existing "]
["#","Item Description","Unit","Qty","price$","Total $"]
[1,"Excavation\nSupply materials, machineries, and manpower to remove the damaged layers (asphalt and concrete), excavate 3m average width the subbase around the pipes to the required depth, removing the existing pipes, the work includes supporting the trench's sides and pumping out the water with all required to complete the job, remove the rubble out of the site to locations determined by the municipality of Mosul.\n","M3",252,null,{"$f":"D10*E10","v":0}]
[2,"Supply pipes:\nSupplying different types and sizes  of pipes as shown below, with all its requirements such as connection fittings of (male & female) threaded adapters , the price includes loading, transporting and unloading in the site."]
[null,"600mm UPVC pipes","ML",42,null,{"$f":"D12*E12","v":0}]
[null," 315mm UPVC pipes ","ML",12,null,{"$f":"D13*E13","v":0}]
[3,"Laying pipes:\nLaying the pipes according to designed slope, bedding under and around the buried pipe with 20cm thick clean sand, the work includes casting the connection joint between the existing and new pipe because of the different pipes material."]
[null,"600mm UPVC pipes","ML",42,null,{"$f":"D15*E15","v":0}]
[4,"Laying gullies pipes:\n Supply materials, machineries, and manpower to excavate and lay(315mm dia. UPVC pipes) according to designed slope, bedding under and around the pipes with 20cm thick clean sand, the work includes connecting the pipe with gully & manhole and backfilling the pipe with compacted subbase layer to the road level.","ML",12,null,{"$f":"D16*E16","v":0}]
[5,"Manholes:\nSupply materials and manpower to cast manholes by reinforced concrete mortar 1:2:4 with 30cm thick base, 25cm thick walls, reinforced with 12mm in dia. (15*15)cm, 30cm thick slab cover reinforced with two layers 12mm dia. (15*15)cm, Providing & fixing steel cover of approved quality (70cm dia.)with the road level, the work includes   excavation, formwork, repairs work and all required to complete the job as the details below:"]
[null,"internal clearance dimensions (1.2*1.2) m","EA",3,null,{"$f":"D18*E18","v":0}]
[5,"Gullies:\nSupply materials, manpower to Cast Gullies with concrete 1:2:4, internal clearance dimensions (35*55) cm, 75cm depth, base thickness 20cm, wall thickness 15cm. The work includes providing and fixing cast iron inlet cover.","EA",4,null,{"$f":"D19*E19","v":0}]
[6,"Backfilling:\nSupply materials, machineries, and manpower to backfill the working area with subbase layers every 30cm thick, approved compaction of each layers using machineries making the standard compaction required to the road level. ","M3",210,null,{"$f":"D20*E20","v":0}]
[null,"Total",null,null,null,{"$f":"SUM(F10:F20)","v":0}]

{"sheet":"Domaiz near Al-'Abed school","index":7,"n_rows":24,"n_cols":6,"rows_kept":24,"cut":false,"hidden":false,"merged":[[23,1,23,4],[0,0,0,5],[2,1,2,5],[3,1,3,5],[4,1,4,5],[5,1,5,5]]}
["Renovation of the sewerage pipe network -Domaiz near Al-'Abed school - Mosul- Ninwa Governorate "]
[null,"General Specification : "]
[null," 1- All works according to the instruction by the supervision Engineering Committee"]
[null,"2- All the materials supplied by the contractor must be according to Iraq standards"]
[null,"3- The contractor must provide samples , catalogues and specification of materials for testing and approval by the site engineer before supplying"]
[null,"4- Contractor must pay the cost for samples including and laboratory test required"]
[null,"5- The attached  drawing are part of the BOQ"]
[null,"6- All the supplied pipes thickness shall according to the existing "]
["#","Item Description","Unit","Qty","price$","Total $"]
[1,"Excavation\nSupply materials, machineries, and manpower to remove the damaged layers (asphalt and concrete), excavate 3m average width the subbase around the pipes to the required depth, removing the existing pipes, the work includes supporting the trench's sides and pumping out the water with all required to complete the job, remove the rubble out of the site to locations determined by the municipality of Mosul.\n","M3",288,null,{"$f":"D10*E10","v":0}]
[2,"Supply pipes:\nSupplying different types and sizes  of pipes as shown below, with all its requirements such as connection fittings of (male & female) threaded adapters , the price includes loading, transporting and unloading in the site."]
[null,"800mm UPVC pipes","ML",24,null,{"$f":"D12*E12","v":0}]
[null,"400mm UPVC pipes","ML",24,null,{"$f":"D13*E13","v":0}]
[null," 315mm UPVC pipes ","ML",6,null,{"$f":"D14*E14","v":0}]
[3,"Laying pipes:\nLaying the pipes according to designed slope, bedding under and around the buried pipe with 20cm thick clean sand, the work includes casting the connection joint between the existing and new pipe because of the different pipes material."]
[null,"800mm UPVC pipes","ML",24,null,{"$f":"D16*E16","v":0}]
[null,"400mm UPVC pipes","ML",24,null,{"$f":"D17*E17","v":0}]
[4,"Laying gullies pipes:\n Supply materials, machineries, and manpower to excavate and lay(315mm dia. UPVC pipes) according to designed slope, bedding under and around the pipes with 20cm thick clean sand, the work includes connecting the pipe with gully & manhole and backfilling the pipe with compacted subbase layer to the road level.","ML",6,null,{"$f":"D18*E18","v":0}]
[5,"Manholes:\nSupply materials and manpower to cast manholes by reinforced concrete mortar 1:2:4 with 30cm thick base, 25cm thick walls, reinforced with 12mm in dia. (15*15)cm, 30cm thick slab cover reinforced with two layers 12mm dia. (15*15)cm, Providing & fixing steel cover of approved quality (70cm dia.)with the road level, the work includes   excavation, formwork, repairs work and all required to complete the job as the details below:"]
[null,"internal clearance dimensions (1.2*1.2) m","EA",3,null,{"$f":"D20*E20","v":0}]
[null,"internal clearance dimensions (1*1) m","EA",2,null,{"$f":"D21*E21","v":0}]
[5,"Gullies:\nSupply materials, manpower to Cast Gullies with concrete 1:2:4, internal clearance dimensions (35*55) cm, 75cm depth, base thickness 20cm, wall thickness 15cm. The work includes providing and fixing cast iron inlet cover.","EA",2,null,{"$f":"D22*E22","v":0}]
[6,"Backfilling:\nSupply materials, machineries, and manpower to backfill the working area with subbase layers every 30cm thick, approved compaction of each layers using machineries making the standard compaction required to the road level. ","M3",238,null,{"$f":"D23*E23","v":0}]
[null,"Total",null,null,null,{"$f":"SUM(F10:F23)","v":0}]

{"sheet":"Al-Saha,domaiz & Al-Saherun Int","index":8,"n_rows":21,"n_cols":6,"rows_kept":21,"cut":false,"hidden":false,"merged":[[20,1,20,4],[0,0,0,5],[2,1,2,5],[3,1,3,5],[4,1,4,5],[5,1,5,5]]}
["Renovation of the sewerage pipe network - Al-Saha,domaiz & Al-Saherun Intersection - Mosul - Ninwa Governorate "]
[null,"General Specification : "]
[null," 1- All works according to the instruction by the supervision Engineering Committee"]
[null,"2- All the materials supplied by the contractor must be according to Iraq standards"]
[null,"3- The contractor must provide samples , catalogues and specification of materials for testing and approval by the site engineer before supplying"]
[null,"4- Contractor must pay the cost for samples including and laboratory test required"]
[null,"5- The attached  drawing are part of the BOQ"]
[null,"6- All the supplied pipes thickness shall according to the existing "]
["#","Item Description","Unit","Qty","price$","Total $"]
[1,"Excavation\nSupply materials, machineries, and manpower to remove the damaged layers (asphalt and concrete), excavate 3m average width the subbase around the pipes to the required depth, removing the existing pipes, the work includes supporting the trench's sides and pumping out the water with all required to complete the job, remove the rubble out of the site to locations determined by the municipality of Mosul.\n","M3",144,null,{"$f":"D10*E10","v":0}]
[2,"Supply pipes:\nSupplying different types and sizes  of pipes as shown below, with all its requirements such as connection fittings of (male & female) threaded adapters , the price includes loading, transporting and unloading in the site."]
[null,"600mm UPVC pipes","ML",24,null,{"$f":"D12*E12","v":0}]
[null," 315mm UPVC pipes ","ML",12,null,{"$f":"D13*E13","v":0}]
[3,"Laying pipes:\nLaying the pipes according to designed slope, bedding under and around the buried pipe with 20cm thick clean sand, the work includes casting the connection joint between the existing and new pipe because of the different pipes material."]
[null,"600mm UPVC pipes","ML",24,null,{"$f":"D15*E15","v":0}]
[4,"Laying gullies pipes:\n Supply materials, machineries, and manpower to excavate and lay(315mm dia. UPVC pipes) according to designed slope, bedding under and around the pipes with 20cm thick clean sand, the work includes connecting the pipe with gully & manhole and backfilling the pipe with compacted subbase layer to the road level.","ML",12,null,{"$f":"D16*E16","v":0}]
[5,"Manholes:\nSupply materials and manpower to cast manholes by reinforced concrete mortar 1:2:4 with 30cm thick base, 25cm thick walls, reinforced with 12mm in dia. (15*15)cm, 30cm thick slab cover reinforced with two layers 12mm dia. (15*15)cm, Providing & fixing steel cover of approved quality (70cm dia.)with the road level, the work includes   excavation, formwork, repairs work and all required to complete the job as the details below:"]
[null,"internal clearance dimensions (1.2*1.2) m","EA",3,null,{"$f":"D18*E18","v":0}]
[5,"Gullies:\nSupply materials, manpower to Cast Gullies with concrete 1:2:4, internal clearance dimensions (35*55) cm, 75cm depth, base thickness 20cm, wall thickness 15cm. The work includes providing and fixing cast iron inlet cover.","EA",2,null,{"$f":"D19*E19","v":0}]
[6,"Backfilling:\nSupply materials, machineries, and manpower to backfill the working area with subbase layers every 30cm thick, approved compaction of each layers using machineries making the standard compaction required to the road level. ","M3",120,null,{"$f":"D20*E20","v":0}]
[null,"Total",null,null,null,{"$f":"SUM(F10:F20)","v":0}]

{"sheet":"Al-Mithaq, gravel & sand Yard","index":9,"n_rows":21,"n_cols":6,"rows_kept":21,"cut":false,"hidden":false,"merged":[[20,1,20,4],[0,0,0,5],[2,1,2,5],[3,1,3,5],[4,1,4,5],[5,1,5,5]]}
["Renovation of the sewerage pipe network - Al-Mithaq area-in front of gravel & sand Yard - Mosul- Ninwa Governorate "]
[null,"General Specification : "]
[null," 1- All works according to the instruction by the supervision Engineering Committee"]
[null,"2- All the materials supplied by the contractor must be according to Iraq standards"]
[null,"3- The contractor must provide samples , catalogues and specification of materials for testing and approval by the site engineer before supplying"]
[null,"4- Contractor must pay the cost for samples including and laboratory test required"]
[null,"5- The attached  drawing are part of the BOQ"]
[null,"6- All the supplied pipes thickness shall according to the existing "]
["#","Item Description","Unit","Qty","price$","Total $"]
[1,"Excavation\nSupply materials, machineries, and manpower to remove the damaged layers (asphalt and concrete), excavate 3m average width the subbase around the pipes to the required depth, removing the existing pipes, the work includes supporting the trench's sides and pumping out the water with all required to complete the job, remove the rubble out of the site to locations determined by the municipality of Mosul.\n","M3",108,null,{"$f":"D10*E10","v":0}]
[2,"Supply pipes:\nSupplying different types and sizes  of pipes as shown below, with all its requirements such as connection fittings of (male & female) threaded adapters , the price includes loading, transporting and unloading in the site."]
[null,"900mm GRP pipes","ML",18,null,{"$f":"D12*E12","v":0}]
[null," 315mm UPVC pipes ","ML",6,null,{"$f":"D13*E13","v":0}]
[3,"Laying pipes:\nLaying the pipes according to designed slope, bedding under and around the buried pipe with 20cm thick clean sand, the work includes casting the connection joint between the existing and new pipe because of the different pipes material."]
[null,"900mm GRP pipes","ML",18,null,{"$f":"D15*E15","v":0}]
[4,"Laying gullies pipes:\n Supply materials, machineries, and manpower to excavate and lay(315mm dia. UPVC pipes) according to designed slope, bedding under and around the pipes with 20cm thick clean sand, the work includes connecting the pipe with gully & manhole and backfilling the pipe with compacted subbase layer to the road level.","ML",6,null,{"$f":"D16*E16","v":0}]
[5,"Manholes:\nSupply materials and manpower to cast manholes by reinforced concrete mortar 1:2:4 with 30cm thick base, 25cm thick walls, reinforced with 12mm in dia. (15*15)cm, 30cm thick slab cover reinforced with two layers 12mm dia. (15*15)cm, Providing & fixing steel cover of approved quality (70cm dia.)with the road level, the work includes   excavation, formwork, repairs work and all required to complete the job as the details below:"]
[null,"internal clearance dimensions (1.6*1.6) m","EA",2,null,{"$f":"D18*E18","v":0}]
[6,"Gullies:\nSupply materials, manpower to Cast Gullies with concrete 1:2:4, internal clearance dimensions (35*55) cm, 75cm depth, base thickness 20cm, wall thickness 15cm. The work includes providing and fixing cast iron inlet cover.","EA",2,null,{"$f":"D19*E19","v":0}]
[7,"Backfilling:\nSupply materials, machineries, and manpower to backfill the working area with subbase layers every 30cm thick, approved compaction of each layers using machineries making the standard compaction required to the road level. ","M3",78,null,{"$f":"D20*E20","v":0}]
[null,"Total",null,null,null,{"$f":"SUM(F10:F20)","v":0}]